bitfinex/quotes_SOLUSD_20250602
["timestamp","ask_amount","ask_price","bid_price","bid_amount"]
[1748903324741,27.20023349,156.6,156.56,34.11564103]
[1748903324943,27.20023349,156.57,156.56,18.14732218]
[1748903326172,27.20023349,156.58,156.56,18.14732218]
[1748903326453,27.20023349,156.6,156.56,61.31587452]
[1748903326661,146.4,156.62,156.56,61.31587452]
[1748903326662,146.4,156.62,156.57,27.20023349]
[1748903326816,146.4,156.62,156.56,34.11564103]
[1748903326817,146.4,156.62,156.61,27.20023349]
[1748903327023,27.20023349,156.66,156.61,27.20023349]
[1748903327225,27.20023349,156.64,156.56,75.95564103]
[1748903327522,1.6143,156.67,156.6,27.20023349]
[1748903327523,27.20023349,156.65,156.6,27.20023349]
[1748903327723,146.4,156.64,156.6,27.20023349]
[1748903328060,173.60023349,156.64,156.6,6.38569604]
[1748903328628,8.1825,156.72,156.63,27.20023349]
[1748903328837,27.20023349,156.69,156.64,27.20023349]
[1748903329150,8.1825,156.72,156.63,11.78]
[1748903329151,27.20023349,156.67,156.63,11.78]
[1748903330025,27.20023349,156.67,156.64,6.38406537]
[1748903330235,27.20023349,156.69,156.64,49.54446229]
[1748903330435,27.20023349,156.68,156.64,49.54446229]
[1748903331258,49.9425,156.72,156.66,27.20023349]
[1748903331464,27.20023349,156.7,156.66,27.20023349]
[1748903331961,27.20023349,156.71,156.66,27.20023349]
[1748903332132,27.20023349,156.7,156.66,27.20023349]
[1748903332335,27.20023349,156.69,156.65,27.20023349]
[1748903332636,27.20023349,156.7,156.65,27.20023349]
[1748903333938,27.20023349,156.7,156.66,6.38325035]
[1748903335832,27.20023349,156.7,156.66,22.34137622]
[1748903336034,27.20023349,156.71,156.66,49.54160971]
[1748903336861,27.20023349,156.7,156.66,22.34137622]
[1748903337357,27.20023349,156.71,156.66,49.54160971]
[1748903339057,35.38273349,156.72,156.68,27.20023349]
[1748903339459,27.20023349,156.74,156.69,27.20023349]
[1748903339758,7.7953,156.76,156.71,27.20023349]
[1748903339759,27.20023349,156.75,156.71,27.20023349]
[1748903339932,7.7953,156.76,156.71,27.20023349]
[1748903340136,26.0,156.74,156.7,27.20023349]
[1748903340459,27.20023349,156.71,156.69,11.78]
[1748903340636,146.4,156.7,156.69,11.78]
[1748903341050,146.4,156.7,156.69,45.36226169]
[1748903342736,33.47153349,156.76,156.69,61.31733221]
[1748903343642,27.20023349,156.75,156.7,27.20023349]
[1748903344642,33.47153349,156.76,156.71,27.20023349]
[1748903345140,27.20023349,156.75,156.72,6.38080653]
[1748903345964,146.4,156.74,156.72,6.38080653]
[1748903346538,146.4,156.74,156.72,33.58104002]
[1748903346744,146.4,156.74,156.72,6.38080653]
[1748903347640,146.4,156.74,156.72,33.58104002]
[1748903347841,146.4,156.79,156.73,27.20023349]
[1748903348140,146.4,156.79,156.77,27.20023349]
[1748903348341,146.4,156.79,156.76,27.20023349]
[1748903348582,146.4,156.79,156.75,11.78]
[1748903348875,146.4,156.79,156.75,38.98023349]
[1748903349570,146.4,156.79,156.76,22.32712426]
[1748903349756,146.4,156.79,156.76,49.52735775]
[1748903351735,146.4,156.79,156.77,27.20023349]
[1748903352039,146.4,156.79,156.78,27.20023349]
[1748903352861,146.4,156.79,156.76,22.32712426]
[1748903353036,146.4,156.79,156.78,27.20023349]
[1748903353735,146.4,156.79,156.78,33.57859807]
[1748903354845,146.4,156.79,156.78,6.37836458]
[1748903359959,146.4,156.79,156.78,24.68249348]
[1748903363279,148.9143718,156.83,156.78,72.52022787]
[1748903363592,148.9143718,156.83,156.82,18.3041289]
[1748903364872,148.9143718,156.83,156.81,18.3041289]
[1748903365192,148.9143718,156.83,156.78,95.77609897]
[1748903365193,148.9143718,156.83,156.82,24.68086656]
[1748903368202,148.9143718,156.83,156.82,6.37673766]
[1748903369403,167.2185007,156.83,156.81,18.01699629]
[1748903369720,146.4,156.82,156.81,6.37699629]
[1748903370488,146.4,156.82,156.81,24.68112519]
[1748903371905,146.4,156.82,156.81,6.37699629]
[1748903372113,146.4,156.82,156.81,24.68112519]
[1748903372614,146.4,156.82,156.81,6.37699629]
[1748903372821,146.4,156.82,156.81,24.68112519]
[1748903374597,146.4,156.82,156.81,6.37699629]
[1748903375388,146.4,156.82,156.81,24.68112519]
[1748903379092,146.4,156.82,156.8,18.3041289]
[1748903379289,146.4,156.82,156.79,40.62698111]
[1748903380095,146.4,156.82,156.81,18.3041289]
[1748903380500,146.4,156.82,156.8,18.3041289]
[1748903381121,146.4,156.82,156.81,6.37714431]
[1748903381828,146.4,156.82,156.81,24.68127321]
[1748903383323,146.4,156.82,156.81,18.3041289]
[1748903384115,146.4,156.82,156.8,18.3041289]
[1748903384738,146.4,156.82,156.81,18.3041289]
[1748903385234,146.4,156.82,156.81,24.68127321]
[1748903385433,146.4,156.82,156.81,6.37714431]
[1748903385634,146.4,156.82,156.74,15.94998086]
[1748903385635,66.1099289,156.82,156.74,15.94998086]
[1748903385835,18.3041289,156.8,156.75,18.3041289]
[1748903386015,41.54,156.8,156.76,18.3041289]
[1748903387639,41.54,156.8,156.77,6.37877144]
[1748903388821,18.3041289,156.78,156.73,11.6]
[1748903389026,18.3041289,156.76,156.73,11.6]
[1748903389537,18.3041289,156.75,156.73,17.98035083]
[1748903389737,18.3041289,156.75,156.73,11.6]
[1748903390319,18.3041289,156.75,156.73,17.98039704]
[1748903390530,18.3041289,156.76,156.73,17.98039704]
[1748903390735,67.54,156.78,156.73,36.28452594]
[1748903390929,18.3041289,156.77,156.73,36.28452594]
[1748903391653,18.3041289,156.76,156.73,17.98039704]
[1748903393351,59.8441289,156.77,156.73,36.28452594]
[1748903393645,59.8441289,156.77,156.73,52.23552447]
[1748903394316,59.8441289,156.77,156.73,36.28452594]
[1748903394518,59.8441289,156.77,156.73,17.98039704]
[1748903394519,18.3041289,156.76,156.73,17.98039704]
[1748903394732,18.3041289,156.75,156.73,11.6]
[1748903395730,146.4,156.8,156.73,17.98026722]
[1748903395947,146.4,156.8,156.78,18.3041289]
[1748903396148,146.4,156.8,156.73,59.76026722]
[1748903396423,146.4,156.8,156.77,18.3041289]
[1748903396622,146.4,156.8,156.76,18.3041289]
[1748903396849,146.4,156.8,156.73,75.71126575]
[1748903397026,146.4,156.8,156.76,18.3041289]
[1748903397634,146.4,156.8,156.77,6.37877144]
[1748903398041,146.4,156.8,156.77,24.68290034]
[1748903398546,146.4,156.8,156.77,40.62982896]
[1748903398746,146.4,156.8,156.78,18.3041289]
[1748903398930,146.4,156.8,156.79,18.3041289]
[1748903399448,146.4,156.8,156.77,22.32570006]
[1748903399750,146.4,156.8,156.78,18.3041289]
[1748903400052,146.4,156.8,156.79,6.37795777]
[1748903401139,146.4,156.8,156.79,24.68208667]
[1748903401736,2.5143718,156.83,156.79,52.22698111]
[1748903401943,2.5143718,156.83,156.81,18.3041289]
[1748903402154,2.5143718,156.83,156.82,18.3041289]
[1748903402335,2.5143718,156.83,156.81,18.3041289]
[1748903403038,2.5143718,156.83,156.82,18.3041289]
[1748903403441,2.5143718,156.83,156.81,18.3041289]
[1748903404049,2.5143718,156.83,156.82,18.3041289]
[1748903404442,2.5143718,156.83,156.79,33.92285221]
[1748903404644,2.5143718,156.83,156.81,18.3041289]
[1748903404963,2.5143718,156.83,156.79,33.92285221]
[1748903404964,18.3041289,156.82,156.79,6.37795777]
[1748903405130,18.3041289,156.82,156.71,33.52611092]
[1748903405131,44.3041289,156.8,156.75,6.37958532]
[1748903405435,18.3041289,156.76,156.71,18.3041289]
[1748903405633,7.978,156.79,156.73,18.3041289]
[1748903405634,18.3041289,156.77,156.73,18.3041289]
[1748903405858,18.3041289,156.81,156.76,18.3041289]
[1748903406059,214.14,156.82,156.78,18.3041289]
[1748903406234,232.4441289,156.82,156.78,18.3041289]
[1748903406435,146.4,156.82,156.78,18.3041289]
[1748903407045,18.3041289,156.81,156.77,6.37877144]
[1748903407634,164.7041289,156.82,156.77,24.68290034]
[1748903407975,146.4,156.82,156.81,6.37714431]
[1748903408136,2.5143718,156.83,156.81,6.37714431]
[1748903408335,20.8185007,156.83,156.81,6.37714431]
[1748903409069,2.5143718,156.83,156.81,6.37714431]
[1748903410064,2.5143718,156.83,156.8,6.37755102]
[1748903410429,148.9143718,156.83,156.8,22.32142857]
[1748903410850,148.9143718,156.83,156.82,18.3041289]
[1748903411039,2.5143718,156.83,156.82,18.3041289]
[1748903411366,2.5143718,156.83,156.8,6.37755102]
[1748903411543,20.8185007,156.83,156.8,6.37755102]
[1748903411737,18.3041289,156.82,156.8,6.37755102]
[1748903412262,18.3041289,156.81,156.79,6.37795777]
[1748903412448,18.3041289,156.82,156.79,6.37795777]
[1748903412647,20.8185007,156.83,156.79,22.32285221]
[1748903412861,20.8185007,156.83,156.79,6.37795777]
[1748903413065,2.5143718,156.83,156.79,6.37795777]
[1748903413382,20.8185007,156.83,156.79,6.37795777]
[1748903414033,2.5143718,156.83,156.79,6.37795777]
[1748903414355,20.8185007,156.83,156.79,6.37795777]
[1748903415786,18.3041289,156.82,156.78,17.97830618]
[1748903416069,18.3041289,156.79,156.75,15.94831578]
[1748903416243,206.5441289,156.81,156.76,18.3041289]
[1748903417040,18.3041289,156.8,156.75,34.25244468]
[1748903417353,146.4,156.79,156.75,34.25244468]
[1748903417658,146.4,156.79,156.75,40.63203]
[1748903418160,146.4,156.79,156.75,22.3279011]
[1748903418373,164.7041289,156.79,156.75,22.3279011]
[1748903418948,18.3041289,156.78,156.75,6.37958532]
[1748903419147,146.4,156.77,156.75,6.37958532]
[1748903422174,164.7041289,156.77,156.75,6.37958532]
[1748903422375,8.0767,156.79,156.72,15.95163236]
[1748903422376,164.7041289,156.76,156.72,15.95163236]
[1748903422871,164.7041289,156.76,156.72,6.38080653]
[1748903423941,146.4,156.76,156.72,40.63695176]
[1748903424146,146.4,156.76,156.73,18.3041289]
[1748903425580,146.4,156.76,156.75,18.3041289]
[1748903426470,146.4,156.76,156.75,24.68371422]
[1748903426668,18.3041289,156.8,156.75,40.63267753]
[1748903426867,18.3041289,156.79,156.75,22.32854863]
[1748903427057,18.3041289,156.79,156.75,6.37958532]
[1748903427255,146.4,156.81,156.76,18.3041289]
[1748903427576,146.4,156.81,156.77,18.3041289]
[1748903427750,164.7041289,156.81,156.76,18.3041289]
[1748903428071,164.7041289,156.81,156.75,40.63267753]
[1748903428072,18.3041289,156.79,156.75,40.63267753]
[1748903428588,18.3041289,156.8,156.75,40.63267753]
[1748903429388,18.3041289,156.76,156.75,6.37958532]
[1748903429699,18.3041289,156.76,156.73,6.38039941]
[1748903429861,18.3041289,156.75,156.73,6.38039941]
[1748903430579,59.8841289,156.76,156.71,22.33424796]
[1748903430892,146.4,156.75,156.71,22.33424796]
[1748903433394,18.3041289,156.73,156.71,6.3812137]
[1748903435792,146.4,156.74,156.71,6.3812137]
[1748903436009,146.4,156.74,156.71,40.63837686]
[1748903436312,146.4,156.74,156.73,18.3041289]
[1748903436608,146.4,156.74,156.71,40.63837686]
[1748903436820,18.3041289,156.72,156.7,18.16157295]
[1748903437031,18.3041289,156.71,156.7,18.16157295]
[1748903437190,18.3041289,156.71,156.7,6.38157295]
[1748903437389,18.3041289,156.71,156.69,7.42443009]
[1748903437928,18.3041289,156.7,156.69,7.42443009]
[1748903438786,59.8641289,156.71,156.69,7.42443009]
[1748903439399,41.56,156.71,156.69,7.42443009]
[1748903439600,18.3041289,156.7,156.69,1.0424184]
[1748903444102,18.3041289,156.7,156.69,7.4244466]
[1748903444305,59.8641289,156.71,156.69,7.4244466]
[1748903444516,59.8641289,156.71,156.69,1.0424184]
[1748903444896,1.6479,156.74,156.69,25.72849199]
[1748903445215,18.3041289,156.73,156.69,7.42436309]
[1748903445393,18.3041289,156.71,156.69,1.0424184]
[1748903445598,18.3041289,156.7,156.69,1.0424184]
[1748903445794,18.3041289,156.7,156.69,7.4244466]
[1748903447522,18.3041289,156.7,156.69,1.0424184]
[1748903449034,146.4,156.69,156.67,6.38269994]
[1748903449208,164.7041289,156.69,156.67,6.38269994]
[1748903449525,164.7041289,156.69,156.66,6.3831055]
[1748903449750,164.7041289,156.68,156.66,6.3831055]
[1748903451534,146.4,156.68,156.66,24.6872344]
[1748903451826,146.4,156.68,156.67,18.3041289]
[1748903452032,146.4,156.68,156.66,24.6872344]
[1748903452396,26.0,156.72,156.66,24.6872344]
[1748903452397,146.4,156.72,156.67,18.3041289]
[1748903452627,146.4,156.72,156.71,18.3041289]
[1748903452795,26.0,156.77,156.71,18.3041289]
[1748903452997,26.0,156.77,156.69,19.8505289]
[1748903452998,164.7041289,156.78,156.73,18.3041289]
[1748903453215,44.3041289,156.77,156.72,18.3041289]
[1748903453421,44.3041289,156.77,156.71,18.3041289]
[1748903453422,18.3041289,156.76,156.71,18.3041289]
[1748903453630,26.0,156.77,156.73,18.3041289]
[1748903453804,164.7041289,156.78,156.73,18.3041289]
[1748903454615,164.7041289,156.78,156.74,6.37999234]
[1748903454816,146.4,156.78,156.74,40.6341021]
[1748903456132,164.7041289,156.78,156.74,22.3299732]
[1748903456433,164.7041289,156.78,156.74,6.37999234]
[1748903456608,18.3041289,156.77,156.74,6.37999234]
[1748903456805,18.3041289,156.76,156.71,18.3041289]
[1748903457221,18.3041289,156.77,156.72,18.3041289]
[1748903457429,18.3041289,156.77,156.7,22.33488228]
[1748903457605,18.3041289,156.77,156.72,18.3041289]
[1748903458219,18.3041289,156.76,156.71,18.3041289]
[1748903458628,18.3041289,156.77,156.72,40.63695176]
[1748903458937,146.4,156.78,156.74,18.3041289]
[1748903459517,164.7041289,156.78,156.73,18.3041289]
[1748903459825,18.3041289,156.76,156.72,6.38080653]
[1748903460028,18.3041289,156.75,156.72,6.38080653]
[1748903460611,18.3041289,156.76,156.72,6.38080653]
[1748903461036,44.3041289,156.73,156.68,11.6]
[1748903461221,18.3041289,156.72,156.68,11.6]
[1748903461413,188.24432314,156.75,156.69,6.3820282]
[1748903461414,146.4,156.71,156.69,6.3820282]
[1748903461607,146.4,156.71,156.7,18.3041289]
[1748903462606,146.4,156.71,156.69,6.3820282]
[1748903463929,146.4,156.71,156.69,24.6861571]
[1748903464111,146.4,156.71,156.7,18.3041289]
[1748903464531,146.4,156.77,156.7,37.38026247]
[1748903464710,146.4,156.77,156.74,18.3041289]
[1748903465213,146.4,156.77,156.73,18.3041289]
[1748903465616,164.7041289,156.77,156.72,18.3041289]
[1748903465919,18.3041289,156.76,156.71,40.63837686]
[1748903466132,18.3041289,156.75,156.71,6.3812137]
[1748903466550,164.7041289,156.77,156.72,18.3041289]
[1748903466729,18.3041289,156.76,156.73,6.38039941]
[1748903467036,18.3041289,156.75,156.73,6.38039941]
[1748903467209,27.13594466,156.75,156.73,6.38039941]
[1748903468011,27.13594466,156.76,156.73,6.38039941]
[1748903468333,146.4,156.77,156.73,33.51634407]
[1748903468633,27.13594466,156.76,156.73,6.38039941]
[1748903468819,27.13594466,156.76,156.72,6.38080653]
[1748903469219,173.53594466,156.75,156.72,6.38080653]
[1748903469421,146.4,156.75,156.72,6.38080653]
[1748903469638,187.96,156.75,156.69,27.13594466]
[1748903469935,27.13594466,156.71,156.69,6.38186925]
[1748903470322,173.53594466,156.7,156.67,6.38267263]
[1748903470514,146.4,156.7,156.66,6.38310414]
[1748903470715,146.4,156.7,156.66,49.47717467]
[1748903471247,173.53594466,156.7,156.66,22.34123001]
[1748903473227,146.4,156.7,156.67,27.13594466]
[1748903474645,146.4,156.7,156.66,22.34123001]
[1748903476311,146.4,156.7,156.67,27.13594466]
[1748903477516,146.4,156.7,156.68,27.13594466]
[1748903477719,146.4,156.7,156.66,22.34123001]
[1748903477720,146.4,156.75,156.69,27.13594466]
[1748903477925,146.4,156.74,156.71,27.13594466]
[1748903478344,146.4,156.74,156.72,6.38080653]
[1748903478537,146.4,156.74,156.72,33.51675119]
[1748903478720,146.4,156.74,156.73,27.13594466]
[1748903478914,146.4,156.74,156.72,6.38080653]
[1748903479239,146.4,156.74,156.72,33.51675119]
[1748903479751,146.4,156.74,156.72,6.38080653]
[1748903480413,146.4,156.74,156.7,27.13594466]
[1748903480814,146.4,156.74,156.72,27.13594466]
[1748903481234,173.53594466,156.74,156.7,27.13594466]
[1748903482316,173.53594466,156.74,156.71,6.3812137]
[1748903482516,173.53594466,156.74,156.71,22.33424796]
[1748903482753,146.4,156.74,156.71,22.33424796]
[1748903484340,146.4,156.73,156.71,22.33424796]
[1748903484647,146.4,156.73,156.69,22.33709872]
[1748903484937,27.13594466,156.71,156.69,22.33709872]
[1748903485245,68.67594466,156.71,156.69,22.33709872]
[1748903486235,173.53594466,156.7,156.69,6.3820282]
[1748903486627,173.53594466,156.7,156.66,22.34090592]
[1748903486822,41.54,156.69,156.66,22.34090592]
[1748903488145,68.67594466,156.69,156.66,22.34090592]
[1748903488932,146.4,156.68,156.66,22.34090592]
[1748903489121,173.53594466,156.68,156.66,22.34090592]
[1748903489317,206.27432326,156.67,156.66,22.34090592]
[1748903490426,187.94,156.67,156.66,22.34090592]
[1748903491032,206.27432326,156.67,156.66,6.38325035]
[1748903492538,187.94,156.67,156.66,6.38325035]
[1748903492918,187.94,156.67,156.65,6.38365783]
[1748903493356,146.4,156.67,156.66,18.33432326]
[1748903493536,146.4,156.66,156.65,6.38365783]
[1748903493741,26.28432314,156.64,156.58,6.38651168]
[1748903493933,18.33432326,156.59,156.58,6.38651168]
[1748903494256,18.33432326,156.59,156.58,7.42893008]
[1748903494462,59.87432326,156.6,156.58,7.42893008]
[1748903494631,7.88657747,156.67,156.59,18.33432326]
[1748903494825,18.33432326,156.66,156.58,17.50869761]
[1748903495058,18.33432326,156.63,156.58,35.84302087]
[1748903495227,59.87432326,156.64,156.59,18.33432326]
[1748903495837,18.33432326,156.63,156.58,17.50869761]
[1748903496083,18.33432326,156.63,156.58,35.84302087]
[1748903496375,18.33432326,156.61,156.58,17.50869761]
[1748903496656,67.54,156.64,156.58,17.50869761]
[1748903496657,18.33432326,156.63,156.58,17.50869761]
[1748903496863,59.87432326,156.64,156.59,18.33432326]
[1748903497070,59.87432326,156.64,156.6,6.38569604]
[1748903497380,68.71525038,156.64,156.6,22.34993614]
[1748903497729,27.17525038,156.63,156.6,22.34993614]
[1748903498740,41.54,156.64,156.6,49.52518652]
[1748903499052,41.54,156.64,156.6,22.34993614]
[1748903499053,68.71525038,156.64,156.6,22.34993614]
[1748903499252,27.17525038,156.63,156.6,22.34993614]
[1748903499467,27.17525038,156.62,156.6,6.38569604]
[1748903499668,173.57525038,156.61,156.59,6.38594461]
[1748903499842,27.17525038,156.6,156.59,6.38594461]
[1748903500042,146.4,156.61,156.59,33.56119499]
[1748903500275,146.4,156.61,156.6,27.17525038]
[1748903500565,146.4,156.61,156.59,33.56119499]
[1748903500742,146.4,156.61,156.6,27.17525038]
[1748903500939,146.4,156.61,156.6,33.56094642]
[1748903505173,146.4,156.61,156.6,6.38569604]
[1748903505362,146.4,156.61,156.6,33.56094642]
[1748903506566,146.4,156.61,156.6,34.06094642]
[1748903508163,146.4,156.61,156.6,6.88569604]
[1748903508342,146.4,156.61,156.6,34.06094642]
[1748903509352,146.4,156.61,156.6,6.88569604]
[1748903509551,146.4,156.61,156.6,34.06094642]
[1748903510469,146.4,156.61,156.6,6.88569604]
[1748903510676,146.4,156.61,156.6,34.06094642]
[1748903514055,30.0768347,156.68,156.6,110.7730171]
[1748903514243,71.6168347,156.68,156.65,27.17525038]
[1748903514656,71.6168347,156.68,156.65,11.58]
[1748903514657,30.0768347,156.68,156.65,11.58]
[1748903514875,152.7893,156.71,156.67,27.17525038]
[1748903515074,194.3293,156.71,156.69,27.17525038]
[1748903515452,194.3293,156.71,156.7,6.38162093]
[1748903515779,152.7893,156.71,156.7,6.38162093]
[1748903515996,194.3293,156.71,156.7,6.38162093]
[1748903517053,194.3293,156.71,156.68,6.38243553]
[1748903517261,27.17525038,156.7,156.68,6.38243553]
[1748903517470,41.54,156.69,156.66,6.38325035]
[1748903517660,41.54,156.69,156.66,49.5166266]
[1748903518383,41.54,156.69,156.66,50.0166266]
[1748903519080,41.54,156.69,156.66,6.88325035]
[1748903519852,41.54,156.69,156.66,22.84137622]
[1748903520062,68.71525038,156.69,156.66,6.88325035]
[1748903520996,41.54,156.69,156.66,6.88325035]
[1748903521279,59.87014451,156.69,156.66,6.88325035]
[1748903521467,18.33014451,156.67,156.61,34.29244246]
[1748903521667,206.25014451,156.66,156.62,22.3470821]
[1748903521859,41.52,156.65,156.62,40.67722661]
[1748903522054,41.52,156.65,156.63,18.33014451]
[1748903522382,146.4,156.66,156.64,18.33014451]
[1748903523255,146.4,156.66,156.64,27.15585215]
[1748903523459,146.4,156.66,156.65,33.53950998]
[1748903524692,146.4,156.66,156.65,6.38365783]
[1748903525371,146.4,156.66,156.65,33.53950998]
[1748903526585,41.52,156.7,156.65,49.49865456]
[1748903526586,146.4,156.7,156.65,49.49865456]
[1748903526760,146.4,156.7,156.68,27.15585215]
[1748903527184,146.4,156.7,156.69,27.15585215]
[1748903527563,146.4,156.7,156.69,33.53788035]
[1748903527760,146.4,156.7,156.69,6.3820282]
[1748903529802,146.4,156.7,156.68,6.38243553]
[1748903530303,146.4,156.7,156.68,34.03828768]
[1748903532692,146.4,156.7,156.69,38.73585215]
[1748903532888,146.4,156.7,156.69,11.58]
[1748903534468,146.4,156.7,156.69,17.9620282]
[1748903536121,173.55585215,156.7,156.69,17.9620282]
[1748903536787,173.55585215,156.7,156.68,6.38237342]
[1748903537394,215.05585215,156.69,156.66,6.38325035]
[1748903537601,27.15585215,156.68,156.66,6.38325035]
[1748903537995,27.15585215,156.67,156.65,6.3836284]
[1748903538199,173.55585215,156.66,156.65,6.3836284]
[1748903538791,146.4,156.66,156.65,6.3836284]
[1748903540312,146.4,156.66,156.65,33.53948055]
[1748903541889,146.4,156.66,156.65,34.03948055]
[1748903543197,146.4,156.66,156.65,25.20404539]
[1748903544108,146.4,156.66,156.65,44.28017896]
[1748903544305,41.5,156.72,156.65,92.15761271]
[1748903544306,146.4,156.71,156.65,92.15761271]
[1748903544492,146.4,156.71,156.7,18.32041699]
[1748903544699,146.4,156.71,156.7,24.70203792]
[1748903545090,146.4,156.71,156.7,36.26203792]
[1748903545710,146.4,156.75,156.7,84.12419489]
[1748903545920,146.4,156.75,156.73,18.32041699]
[1748903546293,146.4,156.75,156.72,18.32041699]
[1748903546491,146.4,156.75,156.7,33.89567325]
[1748903546703,18.32041699,156.74,156.7,52.21609024]
[1748903547016,164.72041699,156.75,156.71,18.32041699]
[1748903547417,18.32041699,156.72,156.7,17.94162093]
[1748903547595,18.32041699,156.71,156.7,17.94162093]
[1748903548102,18.32041699,156.72,156.7,17.94162093]
[1748903548594,59.80041699,156.73,156.7,17.94162093]
[1748903548798,41.48,156.73,156.7,33.89567325]
[1748903549004,206.20041699,156.74,156.7,33.89567325]
[1748903549303,215.01434599,156.74,156.7,33.89567325]
[1748903549899,146.4,156.73,156.7,33.89567325]
[1748903550314,27.13434599,156.75,156.7,61.03001924]
[1748903550912,187.88,156.76,156.7,61.03001924]
[1748903551319,27.13434599,156.75,156.7,61.03001924]
[1748903551708,27.13434599,156.75,156.72,22.33282286]
[1748903551903,27.13434599,156.74,156.72,6.38080653]
[1748903552102,173.53434599,156.73,156.7,17.94150728]
[1748903552421,27.13434599,156.71,156.7,6.38150728]
[1748903552616,41.48,156.72,156.7,6.38150728]
[1748903552822,27.13434599,156.71,156.7,6.38150728]
[1748903553204,27.13434599,156.71,156.68,6.38243553]
[1748903554821,27.13434599,156.69,156.68,6.38243553]
[1748903555123,27.13434599,156.69,156.67,5.41674695]
[1748903555124,146.4,156.68,156.67,11.79942711]
[1748903555301,173.53434599,156.68,156.67,11.79942711]
[1748903555698,173.53434599,156.68,156.67,11.79958986]
[1748903557321,173.53434599,156.68,156.67,5.41674695]
[1748903557735,27.13434599,156.68,156.67,5.41674695]
[1748903558223,67.48,156.69,156.67,5.41674695]
[1748903558523,27.13434599,156.68,156.67,5.41674695]
[1748903560406,27.13434599,156.68,156.67,11.79958986]
[1748903560605,27.13434599,156.68,156.67,5.41674695]
[1748903562914,33.80110466,156.68,156.67,5.41674695]
[1748903563114,27.41866913,156.68,156.67,5.41674695]
[1748903567328,27.41866913,156.68,156.64,7.42636176]
[1748903567329,145.29506603,156.66,156.64,1.0424184]
[1748903567530,145.29506603,156.66,156.64,7.42648377]
[1748903567531,68.59434599,156.65,156.64,7.42648377]
[1748903567928,41.46,156.65,156.64,7.42648377]
[1748903568123,68.59434599,156.65,156.64,7.42648377]
[1748903568327,68.59434599,156.65,156.64,1.0424184]
[1748903569124,75.26232696,156.65,156.64,1.0424184]
[1748903569939,68.87866913,156.65,156.64,1.0424184]
[1748903571217,60.0906532,156.65,156.64,1.0424184]
[1748903571621,86.87752146,156.65,156.64,1.0424184]
[1748903571930,26.0,156.62,156.59,6.38580589]
[1748903572120,18.34633006,156.6,156.58,6.38644573]
[1748903572430,18.34633006,156.59,156.58,6.38644573]
[1748903572626,18.34633006,156.59,156.52,103.44]
[1748903572841,18.34633006,156.56,156.53,15.97137928]
[1748903573641,18.34633006,156.56,156.53,22.35993099]
[1748903574140,18.34633006,156.57,156.53,22.35993099]
[1748903574339,18.34633006,156.57,156.53,40.70626105]
[1748903576134,18.34633006,156.58,156.53,72.64901962]
[1748903576355,18.34633006,156.59,156.54,18.34633006]
[1748903576732,18.34633006,156.58,156.53,72.64901962]
[1748903576938,146.4,156.6,156.55,40.70340446]
[1748903577251,164.74633006,156.6,156.55,40.70340446]
[1748903577551,18.34633006,156.59,156.55,40.70340446]
[1748903578049,18.34633006,156.59,156.55,72.64208219]
[1748903578849,18.34633006,156.59,156.55,54.29575213]
[1748903579733,164.74633006,156.58,156.55,22.3570744]
[1748903579952,18.34633006,156.57,156.55,22.3570744]
[1748903580257,164.74633006,156.58,156.55,15.96933886]
[1748903580473,18.34633006,156.57,156.55,15.96933886]
[1748903582158,18.34633006,156.57,156.53,22.35993099]
[1748903582733,164.74633006,156.56,156.53,22.35993099]
[1748903584628,41.46,156.58,156.52,103.44]
[1748903584629,18.34633006,156.54,156.52,6.3887876]
[1748903584833,164.74633006,156.53,156.47,22.36760396]
[1748903585059,18.34633006,156.49,156.47,22.36760396]
[1748903585261,18.34633006,156.48,156.47,6.39100146]
[1748903585835,18.34633006,156.48,156.45,6.39181847]
[1748903586043,18.34633006,156.46,156.45,6.39181847]
[1748903586541,18.34633006,156.46,156.44,15.97970645]
[1748903586936,18.34633006,156.49,156.44,34.32603651]
[1748903587164,146.4,156.5,156.46,18.34633006]
[1748903589755,146.4,156.5,156.47,22.36850513]
[1748903590479,146.4,156.5,156.48,18.34633006]
[1748903590848,146.4,156.5,156.49,18.34633006]
[1748903591744,146.4,156.5,156.49,24.73651473]
[1748903600357,146.4,156.54,156.49,72.6628998]
[1748903600675,146.4,156.54,156.51,18.34633006]
[1748903600965,146.4,156.54,156.52,6.38895987]